bitfinex-derivatives/quotes_SOLF0:USTF0_20260208
["timestamp","ask_amount","ask_price","bid_price","bid_amount"]
[1770579452722,8.63037012,88.045,88.001,32.97847815]
[1770579452920,8.63037012,88.044,88.001,32.97847815]
[1770579453123,8.63037012,88.043,88.001,32.97847815]
[1770579453319,8.63037012,88.042,88.001,32.97847815]
[1770579453519,8.63037012,88.041,88.001,32.97847815]
[1770579453724,8.63037012,88.04,88.001,32.97847815]
[1770579454024,8.63037012,88.039,88.001,32.97847815]
[1770579454227,8.63037012,88.038,88.001,32.97847815]
[1770579454425,8.63037012,88.037,88.001,32.97847815]
[1770579454628,8.63037012,88.036,88.001,32.97847815]
[1770579454926,8.63037012,88.035,88.001,32.97847815]
[1770579455126,8.63037012,88.034,88.001,32.97847815]
[1770579455327,8.63037012,88.033,88.001,32.97847815]
[1770579455516,10.2296,88.049,88.001,32.97847815]
[1770579455821,8.63112016,88.048,88.001,32.97847815]
[1770579456016,8.63112016,88.047,88.001,32.97847815]
[1770579456219,8.63112016,88.046,88.001,32.97847815]
[1770579456421,8.63112016,88.045,88.001,32.97847815]
[1770579456627,8.63112016,88.044,88.001,32.97847815]
[1770579456824,8.63112016,88.043,88.001,32.97847815]
[1770579457123,8.63112016,88.042,88.001,32.97847815]
[1770579457320,8.63112016,88.041,88.001,32.97847815]
[1770579457525,8.63112016,88.04,88.001,32.97847815]
[1770579457725,8.63112016,88.039,88.001,32.97847815]
[1770579458025,8.63112016,88.038,88.001,32.97847815]
[1770579458229,8.63112016,88.037,88.001,32.97847815]
[1770579458531,8.63112016,88.036,88.001,32.97847815]
[1770579458726,8.63112016,88.035,88.001,32.97847815]
[1770579459035,4.29557324,88.07,88.011,33.03760954]
[1770579459232,8.63060021,88.069,88.011,33.03760954]
[1770579459428,8.63060021,88.068,88.011,33.03760954]
[1770579459633,8.63060021,88.067,88.011,33.03760954]
[1770579459829,8.63060021,88.066,88.011,33.03760954]
[1770579460033,8.63060021,88.065,88.011,33.03760954]
[1770579460234,8.63060021,88.064,88.021,33.03420033]
[1770579460529,8.63060021,88.063,88.021,33.03420033]
[1770579460728,8.63060021,88.062,88.021,33.03420033]
[1770579460928,8.63060021,88.061,88.021,33.03420033]
[1770579461129,8.63060021,88.06,88.021,33.03420033]
[1770579461329,8.63060021,88.059,88.021,33.03420033]
[1770579461634,8.63060021,88.058,88.021,33.03420033]
[1770579461830,8.63060021,88.057,88.021,33.03420033]
[1770579462132,8.63116529,88.056,88.021,33.03420033]
[1770579462332,10.2272,88.07,88.021,33.03420033]
[1770579462530,8.63118773,88.069,88.021,33.03420033]
[1770579462833,8.63118773,88.068,88.021,33.03420033]
[1770579463132,8.63118773,88.067,88.021,33.03420033]
[1770579463333,8.63118773,88.066,88.021,33.03420033]
[1770579463533,8.63118773,88.065,88.021,33.03420033]
[1770579463736,8.63118773,88.064,88.021,33.03420033]
[1770579463932,8.63118773,88.063,88.021,33.03420033]
[1770579464132,8.63118773,88.062,88.021,33.03420033]
[1770579464433,8.63118773,88.061,88.021,33.03420033]
[1770579464631,8.63118773,88.06,88.021,33.03420033]
[1770579464829,14.88293848,88.08,88.021,33.03420033]
[1770579465028,4.29557324,88.07,88.021,33.03420033]
[1770579465230,8.63182273,88.069,88.021,33.03420033]
[1770579465428,8.63182273,88.068,88.021,33.03420033]
[1770579465633,8.63182273,88.067,88.021,33.03420033]
[1770579465833,8.63182273,88.066,88.021,33.03420033]
[1770579466029,8.63182273,88.065,88.021,33.03420033]
[1770579466238,8.63182273,88.064,88.021,33.03420033]
[1770579466433,8.63182273,88.063,88.021,33.03420033]
[1770579466741,8.63182273,88.062,88.021,33.03420033]
[1770579466942,8.63182273,88.061,88.021,33.03420033]
[1770579467240,8.63182273,88.06,88.021,33.03420033]
[1770579467441,4.29557324,88.07,88.021,33.03420033]
[1770579467638,8.63341428,88.069,88.021,33.03420033]
[1770579467839,8.63341428,88.068,88.021,33.03420033]
[1770579468039,8.63341428,88.067,88.021,33.03420033]
[1770579468240,8.63341428,88.066,88.021,33.03420033]
[1770579468443,8.63341428,88.065,88.021,33.03420033]
[1770579468637,8.63341428,88.064,88.021,33.03420033]
[1770579468842,8.63341428,88.063,88.021,33.03420033]
[1770579469042,8.63341428,88.062,88.021,33.03420033]
[1770579469242,8.63341428,88.061,88.021,33.03420033]
[1770579469442,8.63341428,88.06,88.021,33.03420033]
[1770579469645,8.63341428,88.059,88.021,33.03420033]
[1770579469946,8.63341428,88.058,88.021,33.03420033]
[1770579470142,8.63341428,88.057,88.021,33.03420033]
[1770579470341,8.63341428,88.056,88.021,33.03420033]
[1770579470547,8.63341428,88.055,88.021,33.03420033]
[1770579470747,8.63341428,88.054,88.021,33.03420033]
[1770579470947,4.29557324,88.07,88.021,33.03420033]
[1770579471148,8.63910491,88.069,88.021,33.03420033]
[1770579471350,8.63910491,88.068,88.021,33.03420033]
[1770579471549,8.63910491,88.067,88.021,33.03420033]
[1770579471746,8.63910491,88.066,88.021,33.03420033]
[1770579471944,8.63910491,88.065,88.021,33.03420033]
[1770579472147,8.63910491,88.064,88.021,33.03420033]
[1770579472448,8.63910491,88.063,88.021,33.03420033]
[1770579472648,10.2261,88.079,88.021,33.03420033]
[1770579472649,8.63910491,88.062,88.021,33.03420033]
[1770579472849,8.63910491,88.061,88.021,33.03420033]
[1770579473050,8.63910491,88.06,88.021,33.03420033]
[1770579473349,8.63910491,88.059,88.021,33.03420033]
[1770579473547,8.63910491,88.058,88.021,33.03420033]
[1770579473748,8.63910491,88.057,88.021,33.03420033]
[1770579474047,8.63910491,88.056,88.021,33.03420033]
[1770579474248,10.2261,88.079,88.021,33.03420033]
[1770579474546,10.2263,88.077,88.021,33.03420033]
[1770579474746,8.64548084,88.076,88.021,33.03420033]
[1770579474948,8.64548084,88.075,88.021,33.03420033]
[1770579475148,8.64548084,88.074,88.021,33.03420033]
[1770579475349,8.64548084,88.073,88.021,33.03420033]
[1770579475548,8.64548084,88.072,88.021,33.03420033]
[1770579475749,8.64548084,88.071,88.021,33.03420033]
[1770579475950,8.64548084,88.07,88.021,33.03420033]
[1770579476151,8.64548084,88.069,88.021,33.03420033]
[1770579476351,8.64548084,88.068,88.021,33.03420033]
[1770579476551,8.64548084,88.067,88.021,33.03420033]
[1770579476756,8.64548084,88.066,88.021,43.26690033]
[1770579476949,4.29557324,88.09,88.031,33.00501777]
[1770579477156,4.29557324,88.1,88.041,28.68227735]
[1770579478849,4.29557324,88.09,88.041,28.68227735]
[1770579481654,4.29557324,88.1,88.041,28.68227735]
[1770579483662,14.04564763,88.121,88.061,28.67381898]
[1770579483663,10.58736524,88.115,88.061,28.67381898]
[1770579483962,10.2212,88.121,88.071,28.67381898]
[1770579485360,10.2215,88.118,88.071,28.67381898]
[1770579488065,4.29557324,88.11,88.071,28.67381898]
[1770579490465,8.44306533,88.109,88.071,28.67381898]
[1770579490667,8.44306533,88.108,88.071,28.67381898]
[1770579490962,8.44306533,88.107,88.071,28.67381898]
[1770579491164,8.44306533,88.106,88.071,28.67381898]
[1770579491365,8.44306533,88.105,88.071,28.67381898]
[1770579491565,8.44306533,88.104,88.071,28.67381898]
[1770579491761,8.44306533,88.103,88.071,28.67381898]
[1770579492063,8.44306533,88.102,88.071,28.67381898]
[1770579492256,8.44306533,88.101,88.071,28.67381898]
[1770579492459,8.44306533,88.1,88.071,28.67381898]
[1770579492659,8.44306533,88.099,88.071,28.67381898]
[1770579492856,8.44306533,88.098,88.071,28.67381898]
[1770579493061,8.44306533,88.097,88.071,28.67381898]
[1770579493261,4.29557324,88.11,88.071,28.67381898]
[1770579493556,8.44151032,88.109,88.071,28.67381898]
[1770579493760,8.44151032,88.108,88.071,28.67381898]
[1770579493966,8.44151032,88.107,88.071,28.67381898]
[1770579494167,8.44151032,88.106,88.071,28.67381898]
[1770579494372,8.44151032,88.105,88.071,28.67381898]
[1770579494564,8.44151032,88.104,88.071,28.67381898]
[1770579494765,8.44151032,88.103,88.071,28.67381898]
[1770579494965,8.44151032,88.102,88.071,28.67381898]
[1770579495266,8.44151032,88.101,88.071,28.67381898]
[1770579495566,8.44151032,88.1,88.071,28.67381898]
[1770579495766,8.44151032,88.099,88.071,28.67381898]
[1770579495969,8.44151032,88.098,88.071,28.67381898]
[1770579496165,4.29557324,88.11,88.071,28.67381898]
[1770579496166,8.44151032,88.097,88.071,28.67381898]
[1770579496367,8.44151032,88.096,88.071,28.67381898]
[1770579496668,8.44151032,88.095,88.071,28.67381898]
[1770579496869,4.29557324,88.11,88.071,28.67381898]
[1770579497164,8.44206489,88.109,88.071,28.67381898]
[1770579497364,8.44206489,88.108,88.071,28.67381898]
[1770579497570,8.44206489,88.107,88.071,28.67381898]
[1770579497769,8.44206489,88.106,88.071,28.67381898]
[1770579497969,8.44206489,88.105,88.071,28.67381898]
[1770579498267,8.44206489,88.104,88.071,28.67381898]
[1770579498468,8.44206489,88.103,88.071,28.67381898]
[1770579498766,8.44206489,88.102,88.071,28.67381898]
[1770579498967,8.44206489,88.101,88.071,28.67381898]
[1770579499167,8.44206489,88.1,88.071,28.67381898]
[1770579499467,8.44206489,88.099,88.071,28.67381898]
[1770579499661,8.44206489,88.098,88.071,28.67381898]
[1770579499864,10.2222,88.113,88.071,28.67381898]
[1770579502569,4.29557324,88.1,88.071,28.67381898]
[1770579506374,10.2234,88.102,88.071,28.67381898]
[1770579511878,8.42769887,88.101,88.071,28.67381898]
[1770579512079,8.42769887,88.1,88.071,28.67381898]
[1770579512279,8.42769887,88.099,88.071,28.67381898]
[1770579512577,10.2234,88.102,88.071,28.67381898]
[1770579512578,8.42769887,88.098,88.071,28.67381898]
[1770579512779,8.42769887,88.097,88.071,28.67381898]
[1770579512980,8.42769887,88.096,88.071,28.67381898]
[1770579513279,8.42769887,88.095,88.071,28.67381898]
[1770579513474,8.42769887,88.094,88.071,28.67381898]
[1770579513680,10.2234,88.102,88.071,28.67381898]
[1770579513681,8.42769887,88.093,88.071,28.67381898]
[1770579513876,8.42769887,88.092,88.071,28.67381898]
[1770579514178,8.42769887,88.091,88.071,28.67381898]
[1770579514378,8.42769887,88.09,88.071,28.67381898]
[1770579514578,10.2234,88.102,88.071,28.67381898]
[1770579514579,8.42769887,88.089,88.071,28.67381898]
[1770579514778,10.2234,88.102,88.071,28.67381898]
[1770579515082,8.42595913,88.101,88.071,28.67381898]
[1770579515273,8.42595913,88.1,88.071,28.67381898]
[1770579515474,8.42595913,88.099,88.071,28.67381898]
[1770579515670,8.42595913,88.098,88.071,28.67381898]
[1770579515878,8.42595913,88.097,88.071,28.67381898]
[1770579516079,8.42595913,88.096,88.071,28.67381898]
[1770579516281,8.43305575,88.095,88.071,28.67381898]
[1770579516481,8.43305575,88.094,88.071,28.67381898]
[1770579516672,8.43305575,88.093,88.071,28.67381898]
[1770579516875,8.43305575,88.092,88.071,28.67381898]
[1770579517071,8.43305575,88.091,88.071,28.67381898]
[1770579517277,10.59319355,88.108,88.071,28.67381898]
[1770579517278,4.29557324,88.13,88.071,28.67381898]
[1770579517674,4.29557324,88.12,88.071,28.67381898]
[1770579518691,10.222,88.114,88.071,28.67381898]
[1770579524295,4.28878358,88.12,88.071,28.67381898]
[1770579524502,10.2207,88.126,88.071,28.67381898]
[1770579525103,10.2195,88.136,88.091,9.65043597]
[1770579526304,10.2182,88.147,88.091,9.65043597]
[1770579527500,10.2182,88.147,88.101,9.66578566]
[1770579528207,304.10534661,88.181,88.12,4.28878358]
[1770579528505,4.28878358,88.17,88.121,9.65483205]
[1770579528707,4.28878358,88.18,88.121,9.65483205]
[1770579528898,304.10534661,88.181,88.131,9.65483205]
[1770579529100,4.28878358,88.21,88.151,9.65483205]
[1770579529299,4.28878358,88.2,88.151,9.65483205]
[1770579530203,10.2111,88.208,88.151,9.65483205]
[1770579530399,8.26739743,88.207,88.151,9.65483205]
[1770579530596,8.26739743,88.206,88.151,9.65483205]
[1770579530802,8.26739743,88.205,88.151,9.65483205]
[1770579531005,1.86942213,88.231,88.181,4.03383191]
[1770579531404,299.33406434,88.237,88.181,4.03383191]
[1770579531802,4.28878358,88.25,88.2,4.28878358]
[1770579532000,4.28878358,88.25,88.201,4.03383191]
[1770579532603,14.04564763,88.28,88.206,4.03383191]
[1770579532808,4.28878358,88.28,88.221,4.03383191]
[1770579533111,6.15393285,88.28,88.221,4.03383191]
[1770579533511,4.28878358,88.26,88.221,4.03383191]
[1770579534011,4.28878358,88.24,88.208,4.03383191]
[1770579534906,4.28878358,88.23,88.171,4.03383191]
[1770579535212,4.28878358,88.21,88.171,4.03383191]
[1770579538914,4.28878358,88.2,88.171,4.03383191]
[1770579539114,4.28878358,88.2,88.123,10.2208]
[1770579539115,6.2214218,88.21,88.151,4.03383191]
[1770579539415,4.28878358,88.2,88.151,4.03383191]
[1770579540617,14.04564763,88.272,88.151,4.03383191]
[1770579540618,4.28878358,88.19,88.151,4.03383191]
[1770579541114,4.28878358,88.22,88.161,4.03383191]
[1770579541514,4.28878358,88.22,88.135,10.2195]
[1770579541515,1.92771659,88.228,88.171,4.03383191]
[1770579541720,4.28878358,88.24,88.181,4.03383191]
[1770579541920,1.92771659,88.242,88.191,4.03383191]
[1770579542220,4.28878358,88.25,88.191,4.03383191]
[1770579542819,1.93134422,88.257,88.211,4.03383191]
[1770579543220,4.28878358,88.26,88.211,4.03383191]
[1770579544418,12.13534422,88.27,88.211,4.03383191]
[1770579544419,1.93838575,88.269,88.22,4.28878358]
[1770579544618,4.28878358,88.27,88.221,4.03383191]
[1770579544815,6.22716933,88.27,88.221,4.03383191]
[1770579545017,12.14238575,88.269,88.221,4.03383191]
[1770579545220,1.93838575,88.269,88.221,4.03383191]
[1770579547018,1.9298654,88.298,88.241,4.03383191]
[1770579547324,1.9298654,88.289,88.241,4.03383191]
[1770579547515,14.04564763,88.343,88.135,20.4389]
[1770579547516,4.28878358,88.3,88.251,4.03383191]
[1770579548310,4.28878358,88.29,88.251,4.03383191]
[1770579548809,6.21481747,88.3,88.251,4.03383191]
[1770579549421,4.28878358,88.29,88.251,4.03383191]
[1770579549619,1.92603389,88.296,88.251,4.03383191]
[1770579549819,1.92603389,88.313,88.251,4.03383191]
[1770579550023,4.28878358,88.3,88.251,4.03383191]
[1770579550415,4.28878358,88.29,88.231,4.03383191]
[1770579550616,1.92365938,88.297,88.241,4.03383191]
[1770579550923,10.201,88.296,88.241,4.03383191]
[1770579551120,4.28878358,88.29,88.241,4.03383191]
[1770579551311,4.28878358,88.28,88.241,4.03383191]
[1770579551516,4.28878358,88.28,88.221,4.03383191]
[1770579552317,4.28878358,88.28,88.231,4.03383191]
[1770579553415,6.22550307,88.28,88.231,4.03383191]
[1770579553620,1.93671949,88.259,88.203,4.03383191]
[1770579554724,4.28878358,88.25,88.203,4.03383191]
[1770579556019,4.28878358,88.26,88.211,3.86112246]
[1770579556215,1.92695262,88.269,88.211,3.86112246]
[1770579556414,1.92695262,88.239,88.181,3.86112246]
[1770579558021,4.28878358,88.23,88.181,3.86112246]
[1770579560523,10.2087,88.229,88.181,3.86112246]
[1770579562129,4.28878358,88.22,88.181,3.86112246]
[1770579562524,10.2087,88.229,88.181,3.86112246]
[1770579564229,1.93509961,88.209,88.164,3.86112246]
[1770579568130,1.84319085,88.199,88.15,3.86112246]
[1770579568323,4.28878358,88.19,88.15,3.86112246]
[1770579568522,6.13197443,88.19,88.15,3.86112246]
[1770579569330,1.84319085,88.189,88.131,3.86112246]
[1770579570033,1.84319085,88.179,88.131,3.86112246]
[1770579570728,4.28878358,88.19,88.132,3.86112246]
[1770579571232,6.07529344,88.19,88.132,3.86112246]
[1770579572135,1.78650986,88.19,88.14,3.86112246]
[1770579572335,1.78650986,88.19,88.141,3.86112246]
[1770579573334,1.85727633,88.205,88.141,3.86112246]
[1770579573631,1.85727633,88.203,88.141,3.86112246]
[1770579573827,8.17690355,88.202,88.141,3.86112246]
[1770579574135,1.85727633,88.221,88.141,3.86112246]
[1770579574326,1.88498986,88.219,88.141,3.86112246]
[1770579574728,1.88498986,88.239,88.157,3.86112246]
[1770579574933,1.88498986,88.237,88.157,3.86112246]
[1770579575233,1.88498986,88.237,88.161,3.86112246]
[1770579575936,1.88498986,88.237,88.165,3.86112246]
[1770579576635,1.82390035,88.233,88.165,3.86112246]
[1770579576833,1.82390035,88.231,88.165,3.86112246]
[1770579577136,1.82390035,88.229,88.165,3.86112246]
[1770579577334,1.82390035,88.227,88.165,3.86112246]
[1770579577529,1.82390035,88.225,88.165,3.86112246]
[1770579578230,1.81454834,88.223,88.165,3.86112246]
[1770579578431,1.81454834,88.219,88.165,3.86112246]
[1770579578732,1.81454834,88.217,88.165,3.86112246]
[1770579578933,1.81454834,88.215,88.165,3.86112246]
[1770579579122,1.81454834,88.213,88.133,10.2197]
[1770579579324,1.81454834,88.211,88.136,3.86112246]
[1770579579635,1.81454834,88.228,88.141,3.86112246]
[1770579579835,1.81454834,88.223,88.151,3.86112246]
[1770579580133,1.81454834,88.221,88.151,3.86112246]
[1770579580334,1.83857184,88.219,88.151,3.86112246]
[1770579580534,10.01484518,88.218,88.151,3.86112246]
[1770579580735,1.83857184,88.214,88.151,3.86112246]
[1770579580939,1.83857184,88.212,88.151,3.86112246]
[1770579581237,1.83857184,88.21,88.151,3.86112246]
[1770579581437,1.83857184,88.208,88.151,3.86112246]
[1770579581636,1.83857184,88.206,88.151,3.86112246]
[1770579581938,1.83857184,88.204,88.151,3.86112246]
[1770579582137,1.86241254,88.202,88.151,3.86112246]
[1770579582339,1.86241254,88.219,88.151,3.86112246]
[1770579582540,1.86241254,88.217,88.151,3.86112246]
[1770579582733,10.03806751,88.216,88.151,3.86112246]
[1770579582934,8.17565497,88.215,88.151,3.86112246]
[1770579583130,8.17565497,88.214,88.151,3.86112246]
[1770579583330,8.17565497,88.213,88.151,3.86112246]
[1770579583539,8.17565497,88.212,88.151,3.86112246]
[1770579583838,1.86241254,88.21,88.151,3.86112246]
[1770579584034,1.86241254,88.208,88.151,3.86112246]
[1770579584238,1.84359732,88.206,88.151,3.86112246]
[1770579584439,1.84359732,88.204,88.151,3.86112246]
[1770579584639,1.84359732,88.202,88.151,3.86112246]
[1770579584836,1.84359732,88.198,88.133,3.86112246]
[1770579585142,1.84581197,88.196,88.133,3.86112246]
[1770579585343,1.84578533,88.194,88.133,3.86112246]
[1770579585535,1.84578533,88.192,88.133,3.86112246]
[1770579585839,1.84578533,88.19,88.133,3.86112246]
[1770579586039,10.0214403,88.189,88.133,3.86112246]
[1770579586240,8.17565497,88.188,88.133,3.86112246]
[1770579586434,8.17565497,88.187,88.133,3.86112246]
[1770579586640,1.79031684,88.22,88.133,3.86112246]
[1770579586834,1.79031684,88.218,88.133,3.86112246]
[1770579587034,1.79031684,88.216,88.133,3.86112246]
[1770579587239,1.79031684,88.214,88.133,3.86112246]
[1770579587540,1.79031684,88.212,88.133,3.86112246]
[1770579587741,12.00101684,88.212,88.139,3.75719308]
[1770579587942,1.79031684,88.211,88.139,3.75719308]
[1770579588241,1.84570193,88.209,88.139,3.75719308]
[1770579588437,1.84570193,88.207,88.139,3.75719308]
[1770579588741,1.84570193,88.205,88.144,3.75719308]
[1770579588933,8.17113908,88.204,88.144,3.75719308]
[1770579589133,1.84570193,88.205,88.144,3.75719308]
[1770579589340,10.01689248,88.204,88.144,3.75719308]
[1770579589540,8.17119055,88.203,88.144,3.75719308]
[1770579589740,8.17119055,88.202,88.144,3.75719308]
[1770579589937,1.84570193,88.204,88.144,3.75719308]
[1770579590139,8.17119151,88.203,88.144,3.75719308]
[1770579590444,1.84570193,88.204,88.144,3.75719308]
[1770579590644,1.85750925,88.202,88.144,3.75719308]
[1770579592349,1.82668778,88.2,88.144,3.75719308]
[1770579594143,8.18305541,88.199,88.144,3.75719308]
[1770579594344,8.18305541,88.198,88.144,3.75719308]
[1770579594542,8.18305541,88.197,88.144,3.75719308]
[1770579594843,1.82668778,88.2,88.144,3.75719308]
[1770579595043,8.18329189,88.199,88.144,3.75719308]
[1770579595245,12.04799385,88.213,88.146,3.75719308]
[1770579595440,10.02566681,88.212,88.146,3.75719308]
[1770579595645,8.18817296,88.211,88.146,3.75719308]
[1770579595841,8.18817296,88.21,88.146,3.75719308]
[1770579596041,8.18817296,88.209,88.146,3.75719308]
[1770579596346,8.18817296,88.208,88.146,3.75719308]
[1770579596645,8.18817296,88.207,88.146,3.75719308]
[1770579596946,8.18817296,88.206,88.146,3.75719308]
[1770579597134,8.18817296,88.205,88.146,3.75719308]
[1770579597444,8.18817296,88.204,88.146,3.75719308]
[1770579597644,8.18817296,88.203,88.146,3.75719308]
[1770579597841,8.18817296,88.202,88.146,3.75719308]
[1770579598045,8.18817296,88.201,88.146,3.75719308]
[1770579598246,8.18817296,88.2,88.146,3.75719308]
[1770579598443,8.18817296,88.199,88.146,3.75719308]
[1770579598638,8.18817296,88.198,88.146,3.75719308]
[1770579598950,1.8368754,88.196,88.146,3.75719308]
[1770579599154,1.8368754,88.194,88.146,3.75719308]
[1770579599448,1.8368754,88.192,88.146,3.75719308]
[1770579599647,10.02504836,88.191,88.146,3.75719308]
[1770579599847,8.18817296,88.19,88.146,3.75719308]
[1770579600049,8.18817296,88.189,88.146,3.75719308]
[1770579600250,8.18817296,88.188,88.146,3.75719308]
[1770579600441,8.18817296,88.187,88.146,3.75719308]
[1770579600641,1.8293305,88.185,88.133,3.75719308]
[1770579600852,1.8293305,88.183,88.113,3.75719308]
[1770579601048,10.52061361,88.204,88.131,3.75719308]
[1770579601250,1.8293305,88.213,88.131,3.75719308]
[1770579601644,10.2106,88.212,88.148,3.75719308]
[1770579602151,1.8293305,88.213,88.151,3.75719308]
[1770579602450,11.46548899,88.24,88.151,3.75719308]
[1770579602451,3.96859492,88.242,88.171,3.75719308]
[1770579602654,3.96859492,88.242,88.175,3.75719308]
[1770579604155,3.96859492,88.242,88.179,3.75719308]
[1770579605255,3.96859492,88.241,88.179,3.75719308]
[1770579606666,3.96859492,88.215,88.151,3.75719308]
[1770579606957,3.96859492,88.2,88.151,3.75719308]
[1770579607158,3.96859492,88.2,88.138,10.2191]
[1770579608758,3.96859492,88.199,88.12,3.75719308]
[1770579608960,3.96859492,88.185,88.12,3.75719308]
[1770579609265,3.96859492,88.191,88.12,3.75719308]
[1770579609554,3.96859492,88.189,88.124,3.75719308]
[1770579609761,11.46548899,88.19,88.124,3.75719308]
[1770579609762,3.96859492,88.184,88.124,3.75719308]
[1770579611263,3.96859492,88.18,88.124,3.75719308]
[1770579612764,14.48920853,88.195,88.124,3.75719308]
[1770579612961,14.48920853,88.195,88.11,11.46548899]
[1770579612962,3.96859492,88.195,88.127,3.75719308]
[1770579613153,8.2186898,88.194,88.127,3.75719308]
[1770579613352,8.2186898,88.193,88.127,3.75719308]
[1770579613554,3.96859492,88.195,88.131,3.75719308]
[1770579613759,8.2182714,88.194,88.134,3.75719308]
[1770579613956,8.2182714,88.193,88.134,3.75719308]
[1770579614152,8.2182714,88.192,88.134,3.75719308]
[1770579614361,8.2182714,88.191,88.134,3.75719308]
[1770579614663,8.2182714,88.19,88.134,3.75719308]
[1770579614867,3.96859492,88.195,88.134,3.75719308]
[1770579615064,8.21871226,88.194,88.134,3.75719308]
[1770579615271,8.21871226,88.193,88.134,3.75719308]
[1770579615461,8.21871226,88.192,88.134,3.75719308]
[1770579615665,8.21871226,88.191,88.134,3.75719308]
[1770579615853,8.21871226,88.19,88.134,3.75719308]
[1770579616059,3.96859492,88.195,88.134,3.75719308]
[1770579616367,8.21959175,88.194,88.134,3.75719308]
[1770579616559,3.79942956,88.209,88.136,3.98340277]
[1770579616760,3.79942956,88.207,88.136,3.98340277]
[1770579616956,3.79942956,88.205,88.136,3.98340277]
[1770579617162,8.22009926,88.204,88.136,3.98340277]
[1770579617358,8.22009926,88.203,88.152,3.98340277]
[1770579617563,10.52061361,88.234,88.171,3.98340277]
[1770579617863,8.2181462,88.233,88.171,3.98340277]
[1770579618057,8.2181462,88.232,88.171,3.98340277]
[1770579618262,3.79942956,88.251,88.186,3.98340277]
[1770579618567,8.21476866,88.25,88.186,3.98340277]
[1770579618769,8.21476866,88.249,88.186,3.98340277]
[1770579618969,8.21476866,88.248,88.186,3.98340277]
[1770579619168,8.21476866,88.247,88.19,3.98340277]
[1770579619361,8.21476866,88.246,88.19,3.98340277]
[1770579619562,8.21476866,88.245,88.19,3.98340277]
[1770579619770,8.21476866,88.244,88.19,3.98340277]
[1770579619965,8.21476866,88.243,88.19,3.98340277]
[1770579620162,8.21476866,88.242,88.19,3.98340277]
[1770579620367,8.21476866,88.241,88.19,3.98340277]
[1770579620566,3.79942956,88.251,88.19,3.98340277]
[1770579620767,8.21110447,88.25,88.192,3.98340277]
[1770579620968,8.21110447,88.249,88.192,3.98340277]
[1770579621171,8.21110447,88.249,88.15,11.46548899]
[1770579621172,3.79942956,88.247,88.161,3.98340277]
[1770579621364,3.79942956,88.245,88.181,3.98340277]
[1770579621561,8.21110447,88.244,88.181,3.98340277]
[1770579621765,3.79942956,88.245,88.181,3.98340277]
[1770579621766,8.21110447,88.243,88.181,3.98340277]
[1770579622071,10.52061361,88.261,88.181,3.98340277]
[1770579622072,8.21110447,88.242,88.181,3.98340277]
[1770579622269,8.21110447,88.241,88.181,3.98340277]
[1770579622471,8.20870892,88.24,88.181,3.98340277]
[1770579622670,8.20870892,88.239,88.181,3.98340277]
[1770579622871,3.79942956,88.244,88.183,3.98340277]
[1770579623175,8.20871315,88.243,88.183,3.98340277]
[1770579623469,3.79942956,88.265,88.183,3.98340277]
[1770579623672,3.79942956,88.263,88.183,3.98340277]
[1770579623871,8.20470413,88.262,88.183,3.98340277]
[1770579624169,11.46548899,88.29,88.183,3.98340277]
[1770579624170,3.79942956,88.26,88.183,3.98340277]
[1770579624374,3.79942956,88.258,88.183,3.98340277]
[1770579624573,3.79942956,88.256,88.183,3.98340277]
[1770579624773,3.79942956,88.254,88.199,10.2111]
[1770579624973,3.79942956,88.252,88.199,10.2111]
[1770579625972,3.79942956,88.252,88.199,14.19450277]
[1770579626570,3.79942956,88.252,88.204,10.2104]
[1770579626773,3.79942956,88.252,88.205,3.98340277]
[1770579628674,3.79942956,88.252,88.209,10.2099]
[1770579629574,3.79942956,88.252,88.205,3.98340277]
[1770579630378,8.19485748,88.251,88.206,10.2102]
[1770579630581,8.19485748,88.25,88.207,3.98340277]
[1770579630772,8.19485748,88.249,88.207,3.98340277]
[1770579630973,3.79942956,88.266,88.207,3.98340277]
[1770579631271,3.79942956,88.264,88.207,3.98340277]
[1770579631574,3.79942956,88.262,88.207,3.98340277]
[1770579631873,3.79942956,88.26,88.207,3.98340277]
[1770579632073,8.19427567,88.259,88.207,3.98340277]
[1770579632377,8.19427567,88.258,88.207,3.98340277]
[1770579632575,3.79942956,88.256,88.207,3.98340277]
[1770579632780,10.52061361,88.27,88.181,16.0]
[1770579632781,3.79942956,88.254,88.191,3.98340277]
[1770579633077,3.79942956,88.252,88.191,3.98340277]
[1770579633379,3.79942956,88.25,88.191,3.98340277]
[1770579633575,3.79942956,88.248,88.191,3.98340277]
[1770579633880,11.99370523,88.247,88.191,3.98340277]
[1770579634174,8.19427567,88.246,88.192,3.98340277]
[1770579634382,3.79942956,88.247,88.192,3.98340277]
[1770579634683,8.19097076,88.246,88.192,3.98340277]
[1770579634882,3.79942956,88.247,88.192,3.98340277]
[1770579635075,8.19097076,88.246,88.192,3.98340277]
[1770579635279,3.79942956,88.247,88.192,3.98340277]
[1770579635471,3.79942956,88.247,88.195,3.98340277]
[1770579635677,3.79942956,88.256,88.195,3.98340277]
[1770579635877,3.79942956,88.254,88.195,3.98340277]
[1770579636082,8.19048781,88.253,88.195,3.98340277]
[1770579636379,8.19048781,88.252,88.195,3.98340277]
[1770579636583,8.19048781,88.251,88.197,3.98340277]